[Event "Early-Titled-Tuesday-Blitz-July-09-2024"]
[Site "Chess.com"]
[Date "2024.07.09"]
[Round "11"]
[White "chessbaerchen"]
[Black "ilqar_74"]
[Result "0-1"]
[WhiteElo "2653"]
[BlackElo "2876"]
[TimeControl "180+1"]
[EndTime "10:08:02 PDT"]
[Termination "ilqar_74 won by checkmate"]

1. e4 {[%clk 0:03:00.9]} 1... c5 {[%clk 0:02:59.9]} 2. Nf3 {[%clk 0:03:00.7]}
2... d6 {[%clk 0:02:57.3]} 3. d4 {[%clk 0:03:00.2]} 3... cxd4 {[%clk 0:02:58.2]}
4. Nxd4 {[%clk 0:03:00.2]} 4... Nf6 {[%clk 0:02:49.9]} 5. Nc3 {[%clk 0:02:59.3]}
5... e5 {[%clk 0:02:29.3]} 6. Nb3 {[%clk 0:02:46.5]} 6... Be7 {[%clk 0:02:29.2]}
7. f3 {[%clk 0:02:45.8]} 7... O-O {[%clk 0:02:29.2]} 8. Be3 {[%clk 0:02:46]}
8... Be6 {[%clk 0:02:29.8]} 9. Qd2 {[%clk 0:02:45.1]} 9... a5 {[%clk 0:02:30.4]}
10. Bb5 {[%clk 0:02:38.1]} 10... Na6 {[%clk 0:02:29.9]} 11. a4 {[%clk
0:02:26.8]} 11... Nb4 {[%clk 0:02:29.2]} 12. Nc1 {[%clk 0:02:20.6]} 12... d5
{[%clk 0:02:28.5]} 13. exd5 {[%clk 0:02:20.3]} 13... Nfxd5 {[%clk 0:02:28.5]}
14. Nxd5 {[%clk 0:02:19.4]} 14... Nxd5 {[%clk 0:02:29.4]} 15. Nd3 {[%clk
0:02:18.1]} 15... Rc8 {[%clk 0:02:27.8]} 16. c3 {[%clk 0:02:12]} 16... Nxe3
{[%clk 0:02:20.6]} 17. Qxe3 {[%clk 0:02:12.9]} 17... Bg5 {[%clk 0:02:20.2]} 18.
Qe2 {[%clk 0:01:47.5]} 18... Qb6 {[%clk 0:02:10.9]} 19. Nxe5 {[%clk 0:01:44.6]}
19... Rc5 {[%clk 0:02:10.6]} 20. Rd1 {[%clk 0:01:23.4]} 20... h6 {[%clk
0:01:55.3]} 21. Rd4 {[%clk 0:00:42.8]} 21... Bf6 {[%clk 0:01:48.7]} 22. f4
{[%clk 0:00:43.1]} 22... Qc7 {[%clk 0:01:45.9]} 23. Re4 {[%clk 0:00:41.5]} 23...
Rd8 {[%clk 0:01:34]} 24. O-O {[%clk 0:00:39.2]} 24... Qb6 {[%clk 0:01:33.5]} 25.
Kh1 {[%clk 0:00:38.8]} 25... Bf5 {[%clk 0:01:13.5]} 26. Rd4 {[%clk 0:00:38.1]}
26... Rxd4 {[%clk 0:01:06.9]} 27. cxd4 {[%clk 0:00:39]} 27... Rc7 {[%clk
0:01:07]} 28. Rd1 {[%clk 0:00:36.3]} 28... Qd6 {[%clk 0:01:03]} 29. h3 {[%clk
0:00:32.8]} 29... Be6 {[%clk 0:01:02.6]} 30. d5 {[%clk 0:00:26.5]} 30... Bf5
{[%clk 0:00:50.8]} 31. Rd4 {[%clk 0:00:22.1]} 31... Re7 {[%clk 0:00:45.7]} 32.
Bd3 {[%clk 0:00:16.2]} 32... Bxe5 {[%clk 0:00:43.4]} 33. fxe5 {[%clk 0:00:16.8]}
33... Rxe5 {[%clk 0:00:44.3]} 34. Qf3 {[%clk 0:00:17.3]} 34... Re1+ {[%clk
0:00:30.5]} 35. Bf1 {[%clk 0:00:16.8]} 35... Qe5 {[%clk 0:00:24.4]} 36. Rd2
{[%clk 0:00:16.1]} 36... Be4 {[%clk 0:00:20.7]} 37. Qf2 {[%clk 0:00:16.3]} 37...
Bxd5 {[%clk 0:00:20.6]} 38. Kg1 {[%clk 0:00:15.1]} 38... Re4 {[%clk 0:00:16.8]}
39. Bd3 {[%clk 0:00:14.2]} 39... Rf4 {[%clk 0:00:16.2]} 40. Qg3 {[%clk
0:00:14.4]} 40... Rf1+ {[%clk 0:00:12.1]} 41. Bxf1 {[%clk 0:00:15.1]} 41... Qxg3
{[%clk 0:00:12.2]} 42. Rxd5 {[%clk 0:00:16]} 42... g6 {[%clk 0:00:12.6]} 43.
Rd8+ {[%clk 0:00:14.7]} 43... Kg7 {[%clk 0:00:12.7]} 44. Rd3 {[%clk 0:00:15.6]}
44... Qf4 {[%clk 0:00:12.3]} 45. b3 {[%clk 0:00:16.5]} 45... Qb4 {[%clk
0:00:12.7]} 46. Rf3 {[%clk 0:00:16.9]} 46... Qc5+ {[%clk 0:00:13]} 47. Kh2
{[%clk 0:00:16.9]} 47... f5 {[%clk 0:00:13.7]} 48. Bc4 {[%clk 0:00:16.6]} 48...
Qe5+ {[%clk 0:00:14.2]} 49. Kh1 {[%clk 0:00:17]} 49... g5 {[%clk 0:00:14.9]} 50.
Kg1 {[%clk 0:00:16.9]} 50... f4 {[%clk 0:00:15.4]} 51. Kf2 {[%clk 0:00:16.7]}
51... Qd4+ {[%clk 0:00:16]} 52. Kf1 {[%clk 0:00:16.7]} 52... h5 {[%clk
0:00:16.6]} 53. Rd3 {[%clk 0:00:16.6]} 53... Qe4 {[%clk 0:00:17.1]} 54. Kf2
{[%clk 0:00:17.1]} 54... g4 {[%clk 0:00:17.4]} 55. hxg4 {[%clk 0:00:17.6]} 55...
hxg4 {[%clk 0:00:18.3]} 56. Rd7+ {[%clk 0:00:17.9]} 56... Kh6 {[%clk 0:00:17]}
57. Rd6+ {[%clk 0:00:18.4]} 57... Kg5 {[%clk 0:00:17.6]} 58. Rd5+ {[%clk
0:00:18.9]} 58... Kh4 {[%clk 0:00:17.6]} 59. Rd3 {[%clk 0:00:19.5]} 59... g3+
{[%clk 0:00:17.8]} 60. Kf1 {[%clk 0:00:19.7]} 60... Qe5 {[%clk 0:00:15.3]} 61.
Rd1 {[%clk 0:00:18.4]} 61... Qe3 {[%clk 0:00:14.2]} 62. Rd8 {[%clk 0:00:07.6]}
62... Qf2# {[%clk 0:00:12.3]} 0-1

[Event "Early-Titled-Tuesday-Blitz-July-09-2024"]
[Site "Chess.com"]
[Date "2024.07.09"]
[Round "11"]
[White "vi_pranav"]
[Black "Seochesspie"]
[Result "0-1"]
[WhiteElo "2998"]
[BlackElo "2915"]
[TimeControl "180+1"]
[EndTime "10:08:04 PDT"]
[Termination "Seochesspie won by resignation"]

1. Nf3 {[%clk 0:03:00.9]} 1... d5 {[%clk 0:02:58.5]} 2. g3 {[%clk 0:03:00.5]}
2... Nc6 {[%clk 0:02:57.3]} 3. d4 {[%clk 0:02:59.2]} 3... Bf5 {[%clk 0:02:57.4]}
4. Bg2 {[%clk 0:02:58.7]} 4... Nb4 {[%clk 0:02:57.6]} 5. Na3 {[%clk 0:02:58.9]}
5... e6 {[%clk 0:02:57.8]} 6. c3 {[%clk 0:02:58.7]} 6... Nc6 {[%clk 0:02:57.5]}
7. Nh4 {[%clk 0:02:59.2]} 7... Bg4 {[%clk 0:02:53.4]} 8. Qb3 {[%clk 0:02:59.1]}
8... Rb8 {[%clk 0:02:49.7]} 9. e4 {[%clk 0:02:58.7]} 9... dxe4 {[%clk
0:02:41.7]} 10. Bxe4 {[%clk 0:02:59.6]} 10... Nf6 {[%clk 0:02:41.2]} 11. Bg2
{[%clk 0:02:55.7]} 11... Be7 {[%clk 0:02:38.6]} 12. O-O {[%clk 0:02:54.1]} 12...
O-O {[%clk 0:02:38.6]} 13. Nc4 {[%clk 0:02:53.4]} 13... Nd5 {[%clk 0:02:35.9]}
14. Nf3 {[%clk 0:02:52.7]} 14... Bf5 {[%clk 0:02:30.6]} 15. Re1 {[%clk
0:02:49.7]} 15... h6 {[%clk 0:02:27.8]} 16. Nfe5 {[%clk 0:02:49.7]} 16... Nxe5
{[%clk 0:02:27.7]} 17. Nxe5 {[%clk 0:02:50.6]} 17... c5 {[%clk 0:02:13.4]} 18.
Nf3 {[%clk 0:01:58.6]} 18... b5 {[%clk 0:02:05.7]} 19. Qd1 {[%clk 0:01:53.5]}
19... c4 {[%clk 0:02:01.9]} 20. Ne5 {[%clk 0:01:53.3]} 20... Qc7 {[%clk
0:01:58.2]} 21. a3 {[%clk 0:01:49.9]} 21... Bd6 {[%clk 0:01:50.8]} 22. Bxd5
{[%clk 0:01:41.2]} 22... exd5 {[%clk 0:01:50.8]} 23. Qh5 {[%clk 0:01:41.9]}
23... Be4 {[%clk 0:01:41]} 24. Bf4 {[%clk 0:01:38.3]} 24... Rfe8 {[%clk
0:01:24.4]} 25. f3 {[%clk 0:01:27.5]} 25... Bh7 {[%clk 0:01:06.7]} 26. Qg4
{[%clk 0:00:46.2]} 26... Re6 {[%clk 0:00:52.9]} 27. Nxf7 {[%clk 0:00:42.8]}
27... Rxe1+ {[%clk 0:00:52.7]} 28. Rxe1 {[%clk 0:00:41.3]} 28... Bxf4 {[%clk
0:00:52.2]} 29. Ne5 {[%clk 0:00:19.4]} 29... Bxe5 {[%clk 0:00:52.2]} 30. Rxe5
{[%clk 0:00:20.3]} 30... Qd6 {[%clk 0:00:44.2]} 31. Qf4 {[%clk 0:00:09]} 31...
Rf8 {[%clk 0:00:38.1]} 32. Qg4 {[%clk 0:00:08.3]} 32... Bd3 {[%clk 0:00:32.8]}
33. Kf2 {[%clk 0:00:06]} 33... a5 {[%clk 0:00:32.7]} 34. Qh5 {[%clk 0:00:05.2]}
34... Rd8 {[%clk 0:00:30.5]} 35. Ke3 {[%clk 0:00:04]} 35... b4 {[%clk
0:00:24.4]} 36. axb4 {[%clk 0:00:04.9]} 36... axb4 {[%clk 0:00:25.2]} 37. Re8+
{[%clk 0:00:02.2]} 37... Rxe8+ {[%clk 0:00:23.6]} 38. Qxe8+ {[%clk 0:00:03.1]}
38... Kh7 {[%clk 0:00:24.2]} 39. Qe5 {[%clk 0:00:03.7]} 39... bxc3 {[%clk
0:00:17.2]} 40. bxc3 {[%clk 0:00:02.5]} 40... Qd7 {[%clk 0:00:16.2]} 41. g4
{[%clk 0:00:01.7]} 41... Kg8 {[%clk 0:00:15.6]} 42. h4 {[%clk 0:00:02.3]} 42...
Kf7 {[%clk 0:00:15.9]} 43. Kf2 {[%clk 0:00:03]} 43... Qe6 {[%clk 0:00:15.7]} 44.
Qc7+ {[%clk 0:00:03.3]} 44... Kg8 {[%clk 0:00:16]} 45. Qd8+ {[%clk 0:00:03.6]}
45... Kh7 {[%clk 0:00:15.8]} 46. h5 {[%clk 0:00:03.8]} 46... Qe2+ {[%clk
0:00:14.1]} 47. Kg3 {[%clk 0:00:04.3]} 47... Qe1+ {[%clk 0:00:14]} 48. Kf4
{[%clk 0:00:03.8]} 48... Qxc3 {[%clk 0:00:12.3]} 49. Qxd5 {[%clk 0:00:04.2]}
49... Qd2+ {[%clk 0:00:11.5]} 50. Kg3 {[%clk 0:00:04.8]} 50... c3 {[%clk
0:00:11.6]} 51. Qa5 {[%clk 0:00:05.3]} 51... Qe1+ {[%clk 0:00:11]} 52. Kf4
{[%clk 0:00:05.1]} 52... Qc1+ {[%clk 0:00:10]} 53. Kg3 {[%clk 0:00:03.7]} 53...
c2 {[%clk 0:00:09.6]} 54. Qc3 {[%clk 0:00:04.3]} 54... Qd1 {[%clk 0:00:09.7]}
0-1

[Event "Early-Titled-Tuesday-Blitz-July-09-2024"]
[Site "Chess.com"]
[Date "2024.07.09"]
[Round "11"]
[White "Statham_01"]
[Black "BobbyFischer1508"]
[Result "1/2-1/2"]
[WhiteElo "2664"]
[BlackElo "2478"]
[TimeControl "180+1"]
[EndTime "10:08:04 PDT"]
[Termination "Game drawn by stalemate"]

1. e4 {[%clk 0:03:00.9]} 1... e6 {[%clk 0:02:59.7]} 2. d4 {[%clk 0:03:00.3]}
2... d5 {[%clk 0:02:59.7]} 3. Nc3 {[%clk 0:02:58.9]} 3... Bb4 {[%clk 0:02:58.7]}
4. Qg4 {[%clk 0:02:55.9]} 4... Nf6 {[%clk 0:02:57.4]} 5. Qxg7 {[%clk 0:02:56]}
5... Rg8 {[%clk 0:02:57.5]} 6. Qh6 {[%clk 0:02:56.7]} 6... Rg6 {[%clk
0:02:57.5]} 7. Qh4 {[%clk 0:02:56.9]} 7... Nxe4 {[%clk 0:02:57.4]} 8. Qxd8+
{[%clk 0:02:56.4]} 8... Kxd8 {[%clk 0:02:57.5]} 9. Ne2 {[%clk 0:02:57]} 9...
Nxc3 {[%clk 0:02:55.6]} 10. Nxc3 {[%clk 0:02:46.8]} 10... Bxc3+ {[%clk 0:02:51]}
11. bxc3 {[%clk 0:02:46.7]} 11... b6 {[%clk 0:02:51.4]} 12. Bd3 {[%clk
0:02:24.6]} 12... f5 {[%clk 0:02:46.6]} 13. Rg1 {[%clk 0:02:07]} 13... Ba6
{[%clk 0:02:45.7]} 14. Bf4 {[%clk 0:02:03]} 14... Bxd3 {[%clk 0:02:44.9]} 15.
cxd3 {[%clk 0:02:03.9]} 15... Nc6 {[%clk 0:02:44]} 16. Kd2 {[%clk 0:02:03]}
16... Kd7 {[%clk 0:02:44.2]} 17. Rae1 {[%clk 0:02:00.5]} 17... Na5 {[%clk
0:02:38.9]} 18. f3 {[%clk 0:01:55.3]} 18... Rc8 {[%clk 0:02:37.2]} 19. g4 {[%clk
0:01:52.1]} 19... fxg4 {[%clk 0:02:32]} 20. Rxg4 {[%clk 0:01:53]} 20... Rxg4
{[%clk 0:02:29.5]} 21. fxg4 {[%clk 0:01:53.9]} 21... Rf8 {[%clk 0:02:28.8]} 22.
Bg3 {[%clk 0:01:50.3]} 22... Nc6 {[%clk 0:02:27.3]} 23. Ke3 {[%clk 0:01:38]}
23... Ne7 {[%clk 0:02:11.8]} 24. Re2 {[%clk 0:01:36.8]} 24... c5 {[%clk
0:02:08.3]} 25. dxc5 {[%clk 0:01:26.4]} 25... bxc5 {[%clk 0:02:08.2]} 26. c4
{[%clk 0:01:19.6]} 26... Nc6 {[%clk 0:02:03.9]} 27. h4 {[%clk 0:01:08]} 27...
Nd4 {[%clk 0:02:00.3]} 28. Rf2 {[%clk 0:01:04.3]} 28... Rxf2 {[%clk 0:01:53.1]}
29. Bxf2 {[%clk 0:01:05.2]} 29... Kd6 {[%clk 0:01:31.3]} 30. Kf4 {[%clk
0:00:52.7]} 30... e5+ {[%clk 0:01:31.1]} 31. Kg5 {[%clk 0:00:49.3]} 31... dxc4
{[%clk 0:01:31.1]} 32. dxc4 {[%clk 0:00:48.7]} 32... e4 {[%clk 0:01:31.6]} 33.
Kf4 {[%clk 0:00:34.1]} 33... Nc6 {[%clk 0:01:24.2]} 34. Kxe4 {[%clk 0:00:33.3]}
34... Na5 {[%clk 0:01:24.2]} 35. Bg3+ {[%clk 0:00:28.9]} 35... Ke6 {[%clk
0:01:23.4]} 36. Kd3 {[%clk 0:00:23.1]} 36... Nc6 {[%clk 0:01:20.9]} 37. a3
{[%clk 0:00:21.4]} 37... a6 {[%clk 0:01:18]} 38. Ke4 {[%clk 0:00:19.6]} 38...
Na5 {[%clk 0:01:16.7]} 39. Bf2 {[%clk 0:00:18.2]} 39... Nxc4 {[%clk 0:01:13.5]}
40. Bxc5 {[%clk 0:00:18.3]} 40... Nd2+ {[%clk 0:01:12.8]} 41. Kf4 {[%clk
0:00:17.8]} 41... Nc4 {[%clk 0:01:05]} 42. Kg5 {[%clk 0:00:16.7]} 42... Kf7
{[%clk 0:01:04.4]} 43. Kh6 {[%clk 0:00:15.9]} 43... Kg8 {[%clk 0:01:04.5]} 44.
h5 {[%clk 0:00:13.6]} 44... Ne5 {[%clk 0:01:04.5]} 45. Kg5 {[%clk 0:00:11.3]}
45... Nd7 {[%clk 0:01:04]} 46. Bd4 {[%clk 0:00:10.5]} 46... Kf7 {[%clk
0:01:04.1]} 47. Kf5 {[%clk 0:00:10.6]} 47... Nb8 {[%clk 0:00:53.1]} 48. g5
{[%clk 0:00:10]} 48... Nc6 {[%clk 0:00:51.1]} 49. g6+ {[%clk 0:00:07.6]} 49...
hxg6+ {[%clk 0:00:51.2]} 50. hxg6+ {[%clk 0:00:06.9]} 50... Kg8 {[%clk
0:00:43.9]} 51. Bc3 {[%clk 0:00:06.8]} 51... Ne7+ {[%clk 0:00:40.8]} 52. Kg5
{[%clk 0:00:07.3]} 52... Nxg6 {[%clk 0:00:40.1]} 53. Kxg6 {[%clk 0:00:08.2]}
53... Kf8 {[%clk 0:00:40.6]} 54. Kf6 {[%clk 0:00:08]} 54... Ke8 {[%clk
0:00:41.1]} 55. Ke6 {[%clk 0:00:08.1]} 55... Kd8 {[%clk 0:00:41.6]} 56. Kd5
{[%clk 0:00:06]} 56... Kc8 {[%clk 0:00:42.2]} 57. Be5 {[%clk 0:00:05.8]} 57...
Kb7 {[%clk 0:00:42.3]} 58. Kd6 {[%clk 0:00:06.2]} 58... Ka8 {[%clk 0:00:42.3]}
59. Kc7 {[%clk 0:00:07.1]} 59... a5 {[%clk 0:00:41.1]} 60. Bd4 {[%clk
0:00:07.3]} 60... a4 {[%clk 0:00:40.4]} 61. Kc6 {[%clk 0:00:05.3]} 61... Kb8
{[%clk 0:00:40.2]} 62. Kb6 {[%clk 0:00:06.2]} 62... Ka8 {[%clk 0:00:40.5]} 63.
Ka6 {[%clk 0:00:07.1]} 63... Kb8 {[%clk 0:00:40.7]} 64. Bb6 {[%clk 0:00:08]}
64... Ka8 {[%clk 0:00:41]} 65. Ba5 {[%clk 0:00:08.9]} 65... Kb8 {[%clk
0:00:41.4]} 66. Bb4 {[%clk 0:00:09.8]} 66... Ka8 {[%clk 0:00:41.7]} 67. Kb5
{[%clk 0:00:10.7]} 67... Kb8 {[%clk 0:00:42]} 68. Bd6+ {[%clk 0:00:11.3]} 68...
Ka8 {[%clk 0:00:42.2]} 69. Kc6 {[%clk 0:00:12]} 69... Ka7 {[%clk 0:00:42.1]} 70.
Kc7 {[%clk 0:00:12.3]} 70... Ka8 {[%clk 0:00:42.2]} 71. Kb6 {[%clk 0:00:12.4]}
1/2-1/2

[Event "Early-Titled-Tuesday-Blitz-July-09-2024"]
[Site "Chess.com"]
[Date "2024.07.09"]
[Round "11"]
[White "Jospem"]
[Black "Beca95"]
[Result "1-0"]
[WhiteElo "3116"]
[BlackElo "3000"]
[TimeControl "180+1"]
[EndTime "10:08:06 PDT"]
[Termination "Jospem won on time"]

1. e4 {[%clk 0:02:59.7]} 1... d6 {[%clk 0:02:59.2]} 2. d4 {[%clk 0:02:59.5]}
2... Nf6 {[%clk 0:02:59.8]} 3. Bd3 {[%clk 0:03:00.1]} 3... e5 {[%clk 0:02:59.6]}
4. Nf3 {[%clk 0:03:00]} 4... Nc6 {[%clk 0:02:59.3]} 5. c3 {[%clk 0:03:00.3]}
5... g6 {[%clk 0:02:59.3]} 6. O-O {[%clk 0:02:59.9]} 6... Bg7 {[%clk 0:02:59.7]}
7. h3 {[%clk 0:03:00.4]} 7... O-O {[%clk 0:02:59.9]} 8. Re1 {[%clk 0:03:01.1]}
8... Re8 {[%clk 0:03:00.1]} 9. d5 {[%clk 0:03:00.4]} 9... Nb8 {[%clk 0:02:59.5]}
10. c4 {[%clk 0:03:01]} 10... Nbd7 {[%clk 0:02:58.9]} 11. Nc3 {[%clk 0:03:01.7]}
11... a5 {[%clk 0:02:59.2]} 12. Bg5 {[%clk 0:03:00.3]} 12... h6 {[%clk
0:02:58.9]} 13. Be3 {[%clk 0:03:00.5]} 13... Nh5 {[%clk 0:02:57.6]} 14. a3
{[%clk 0:02:57.8]} 14... Nf4 {[%clk 0:02:52.7]} 15. Bf1 {[%clk 0:02:58]} 15...
Nc5 {[%clk 0:02:50.1]} 16. Kh2 {[%clk 0:02:45]} 16... Qf6 {[%clk 0:02:37.2]} 17.
Ng1 {[%clk 0:02:28.6]} 17... a4 {[%clk 0:02:05.7]} 18. Bxc5 {[%clk 0:02:17.3]}
18... dxc5 {[%clk 0:02:06.6]} 19. Nxa4 {[%clk 0:02:12.4]} 19... b6 {[%clk
0:02:05.8]} 20. Nc3 {[%clk 0:02:12]} 20... Bf8 {[%clk 0:02:05.4]} 21. g3 {[%clk
0:02:05]} 21... Nh5 {[%clk 0:02:05.1]} 22. Qd2 {[%clk 0:02:04.8]} 22... Qd8
{[%clk 0:02:01.9]} 23. Nf3 {[%clk 0:02:01.3]} 23... Nf6 {[%clk 0:02:01.8]} 24.
Bg2 {[%clk 0:01:59.7]} 24... Kh7 {[%clk 0:02:00.6]} 25. Re2 {[%clk 0:01:58.5]}
25... Bd7 {[%clk 0:02:00.1]} 26. Ne1 {[%clk 0:01:56.3]} 26... Bd6 {[%clk
0:02:00.2]} 27. a4 {[%clk 0:01:55.7]} 27... Qe7 {[%clk 0:01:59.8]} 28. Nd3
{[%clk 0:01:55.5]} 28... Nh5 {[%clk 0:01:59.2]} 29. b3 {[%clk 0:01:54.1]} 29...
f6 {[%clk 0:01:47.4]} 30. Rae1 {[%clk 0:01:52.6]} 30... g5 {[%clk 0:01:47.3]}
31. Nb5 {[%clk 0:01:49.3]} 31... Bxb5 {[%clk 0:01:45.7]} 32. cxb5 {[%clk
0:01:49.7]} 32... Qd7 {[%clk 0:01:45.7]} 33. Bf3 {[%clk 0:01:48.1]} 33... Ng7
{[%clk 0:01:45.6]} 34. Bg4 {[%clk 0:01:48.2]} 34... Qe7 {[%clk 0:01:45.5]} 35.
Nb2 {[%clk 0:01:39.9]} 35... h5 {[%clk 0:01:44.8]} 36. Bf5+ {[%clk 0:01:40.4]}
36... Nxf5 {[%clk 0:01:44.4]} 37. exf5 {[%clk 0:01:41.3]} 37... Qd7 {[%clk
0:01:43.6]} 38. Qd3 {[%clk 0:01:40]} 38... Kg7 {[%clk 0:01:43.8]} 39. Kg2 {[%clk
0:01:35.6]} 39... Red8 {[%clk 0:01:40.5]} 40. Qe4 {[%clk 0:01:34]} 40... Bf8
{[%clk 0:01:40.2]} 41. Rd1 {[%clk 0:01:33.7]} 41... Qf7 {[%clk 0:01:40.3]} 42.
Nc4 {[%clk 0:01:34]} 42... Rab8 {[%clk 0:01:39.5]} 43. d6 {[%clk 0:01:19.3]}
43... Bxd6 {[%clk 0:01:36.9]} 44. Red2 {[%clk 0:01:19.6]} 44... Qe7 {[%clk
0:01:34]} 45. Qc6 {[%clk 0:01:05.7]} 45... Rbc8 {[%clk 0:01:02.3]} 46. Nxd6
{[%clk 0:01:02.2]} 46... cxd6 {[%clk 0:01:03.2]} 47. Qxb6 {[%clk 0:01:02.7]}
47... Rb8 {[%clk 0:01:03.7]} 48. Qc6 {[%clk 0:01:02.3]} 48... Rbc8 {[%clk
0:01:04]} 49. Qd5 {[%clk 0:01:01.4]} 49... Rb8 {[%clk 0:01:04.3]} 50. Qe4 {[%clk
0:00:49.9]} 50... Rb6 {[%clk 0:01:00]} 51. Kh2 {[%clk 0:00:46]} 51... Qf7 {[%clk
0:00:55.8]} 52. Qc4 {[%clk 0:00:37.6]} 52... Qxc4 {[%clk 0:00:48.1]} 53. bxc4
{[%clk 0:00:38.5]} 53... Ra8 {[%clk 0:00:48.4]} 54. Ra2 {[%clk 0:00:35]} 54...
Ra5 {[%clk 0:00:47.7]} 55. Kg2 {[%clk 0:00:33.8]} 55... Kf7 {[%clk 0:00:46.8]}
56. Kf3 {[%clk 0:00:34.3]} 56... Ke7 {[%clk 0:00:47]} 57. Ke4 {[%clk 0:00:34.9]}
57... Kd7 {[%clk 0:00:47.4]} 58. Rh1 {[%clk 0:00:29.8]} 58... Rb8 {[%clk
0:00:47.3]} 59. h4 {[%clk 0:00:29.1]} 59... g4 {[%clk 0:00:47.4]} 60. Rd1 {[%clk
0:00:28.5]} 60... Re8 {[%clk 0:00:46]} 61. Rad2 {[%clk 0:00:27]} 1-0

[Event "Early-Titled-Tuesday-Blitz-July-09-2024"]
[Site "Chess.com"]
[Date "2024.07.09"]
[Round "11"]
[White "AlexandraSamaganova"]
[Black "SVijayalakshmi"]
[Result "1/2-1/2"]
[WhiteElo "2374"]
[BlackElo "2525"]
[TimeControl "180+1"]
[EndTime "10:08:20 PDT"]
[Termination "Game drawn by repetition"]

1. c4 {[%clk 0:03:00.9]} 1... Nf6 {[%clk 0:02:57.6]} 2. Nc3 {[%clk 0:03:00.2]}
2... g6 {[%clk 0:02:50.4]} 3. g3 {[%clk 0:02:58.6]} 3... Bg7 {[%clk 0:02:50.3]}
4. Bg2 {[%clk 0:02:54]} 4... O-O {[%clk 0:02:47.1]} 5. e4 {[%clk 0:02:53.4]}
5... d6 {[%clk 0:02:46.8]} 6. Nge2 {[%clk 0:02:53.5]} 6... c5 {[%clk 0:02:46.1]}
7. O-O {[%clk 0:02:53.1]} 7... Nc6 {[%clk 0:02:46.3]} 8. d3 {[%clk 0:02:52.8]}
8... Rb8 {[%clk 0:02:43.6]} 9. f4 {[%clk 0:02:50.1]} 9... a6 {[%clk 0:02:43.8]}
10. a3 {[%clk 0:02:48.7]} 10... Qc7 {[%clk 0:02:43.8]} 11. Rb1 {[%clk
0:02:46.9]} 11... b5 {[%clk 0:02:44]} 12. cxb5 {[%clk 0:02:47.4]} 12... axb5
{[%clk 0:02:44.1]} 13. b4 {[%clk 0:02:47.6]} 13... Bg4 {[%clk 0:02:40.3]} 14. h3
{[%clk 0:02:43.5]} 14... Bd7 {[%clk 0:02:39.5]} 15. bxc5 {[%clk 0:02:35.8]}
15... dxc5 {[%clk 0:02:33.4]} 16. e5 {[%clk 0:02:34.6]} 16... Ne8 {[%clk
0:02:29.1]} 17. Rxb5 {[%clk 0:02:26]} 17... Nd4 {[%clk 0:02:18.7]} 18. Nxd4
{[%clk 0:01:57.9]} 18... cxd4 {[%clk 0:02:17.4]} 19. Nd5 {[%clk 0:01:58]} 19...
Rxb5 {[%clk 0:02:06.4]} 20. Nxc7 {[%clk 0:01:57.2]} 20... Nxc7 {[%clk
0:02:06.9]} 21. a4 {[%clk 0:01:50.1]} 21... Ra5 {[%clk 0:02:02]} 22. Ba3 {[%clk
0:01:49.4]} 22... Re8 {[%clk 0:01:54.2]} 23. Qc2 {[%clk 0:01:29]} 23... Ne6
{[%clk 0:01:47.7]} 24. Bb4 {[%clk 0:01:16.3]} 24... Rxa4 {[%clk 0:01:45.2]} 25.
Rb1 {[%clk 0:01:16.3]} 25... Rc8 {[%clk 0:01:42.9]} 26. Qd1 {[%clk 0:01:11.6]}
26... Bf8 {[%clk 0:01:37.5]} 27. Bd5 {[%clk 0:00:52.3]} 27... Ng7 {[%clk
0:01:33.5]} 28. Qb3 {[%clk 0:00:47.2]} 28... e6 {[%clk 0:01:12.6]} 29. Bxf8
{[%clk 0:00:46.6]} 29... Rxf8 {[%clk 0:01:12.6]} 30. Be4 {[%clk 0:00:40.4]}
30... Nh5 {[%clk 0:01:00.1]} 31. Kf2 {[%clk 0:00:38.8]} 31... Rc8 {[%clk
0:00:56.9]} 32. Kf3 {[%clk 0:00:36.6]} 32... Ra7 {[%clk 0:00:49.6]} 33. g4
{[%clk 0:00:33.9]} 33... Ng7 {[%clk 0:00:48.5]} 34. Qb6 {[%clk 0:00:29.5]} 34...
Rac7 {[%clk 0:00:46.8]} 35. Qxd4 {[%clk 0:00:28.9]} 35... h5 {[%clk 0:00:45.7]}
36. Rb7 {[%clk 0:00:27.6]} 36... h4 {[%clk 0:00:41.7]} 37. Rxc7 {[%clk
0:00:27.2]} 37... Rxc7 {[%clk 0:00:42.1]} 38. Qd6 {[%clk 0:00:26.3]} 38... Ne8
{[%clk 0:00:40.4]} 39. Qe7 {[%clk 0:00:17.5]} 39... Bc6 {[%clk 0:00:40.3]} 40.
Qxh4 {[%clk 0:00:16.9]} 40... Bxe4+ {[%clk 0:00:39.7]} 41. Kxe4 {[%clk
0:00:16.8]} 41... Kf8 {[%clk 0:00:39.4]} 42. Qd8 {[%clk 0:00:14.9]} 42... Ra7
{[%clk 0:00:35.1]} 43. f5 {[%clk 0:00:12.6]} 43... gxf5+ {[%clk 0:00:30.3]} 44.
gxf5 {[%clk 0:00:12.9]} 44... exf5+ {[%clk 0:00:29.4]} 45. Kxf5 {[%clk
0:00:11.8]} 45... Ra6 {[%clk 0:00:27.6]} 46. Qc8 {[%clk 0:00:05.7]} 46... Re6
{[%clk 0:00:24.3]} 47. Qc5+ {[%clk 0:00:05.3]} 47... Kg7 {[%clk 0:00:23.2]} 48.
d4 {[%clk 0:00:05.3]} 48... Kh7 {[%clk 0:00:22.7]} 49. d5 {[%clk 0:00:05.4]}
49... Ng7+ {[%clk 0:00:22.7]} 50. Ke4 {[%clk 0:00:05.1]} 50... Rh6 {[%clk
0:00:22.8]} 51. Qe3 {[%clk 0:00:04.2]} 51... Rh4+ {[%clk 0:00:22.5]} 52. Kf3
{[%clk 0:00:03.6]} 52... Rxh3+ {[%clk 0:00:21.1]} 53. Ke2 {[%clk 0:00:02.5]}
53... Rxe3+ {[%clk 0:00:21.3]} 54. Kxe3 {[%clk 0:00:03.4]} 54... Kg6 {[%clk
0:00:21.8]} 55. e6 {[%clk 0:00:03.2]} 55... Nxe6 {[%clk 0:00:21.1]} 56. dxe6
{[%clk 0:00:03.4]} 56... fxe6 {[%clk 0:00:21.7]} 57. Ke4 {[%clk 0:00:04]} 57...
Kf6 {[%clk 0:00:21.4]} 58. Kf4 {[%clk 0:00:04.4]} 58... Kf7 {[%clk 0:00:21.1]}
59. Ke4 {[%clk 0:00:04.8]} 59... Ke7 {[%clk 0:00:22]} 60. Ke5 {[%clk 0:00:05.1]}
60... Kd7 {[%clk 0:00:22.4]} 61. Ke4 {[%clk 0:00:05.3]} 61... Kd6 {[%clk
0:00:23.3]} 62. Kd4 {[%clk 0:00:05.9]} 62... e5+ {[%clk 0:00:24.2]} 63. Ke4
{[%clk 0:00:06.3]} 63... Ke6 {[%clk 0:00:25.1]} 64. Ke3 {[%clk 0:00:06.5]} 64...
Kf6 {[%clk 0:00:26]} 65. Ke4 {[%clk 0:00:06.7]} 65... Ke6 {[%clk 0:00:25.6]} 66.
Ke3 {[%clk 0:00:06.7]} 66... Kf5 {[%clk 0:00:25.2]} 67. Kf3 {[%clk 0:00:07]}
67... Kf6 {[%clk 0:00:25.2]} 68. Ke4 {[%clk 0:00:07.2]} 68... Ke6 {[%clk
0:00:25.7]} 1/2-1/2